fUST/lending_fUST_20250414
["ID","MTS","AMOUNT","RATE_DAILY","PERIOD"]
[357926357,1744575032515,-500.0,0.00027397,2]
[357926359,1744575032525,-500.0,0.00027397,2]
[357926361,1744575032534,-330.3153925,0.00027573,2]
[357926363,1744575032544,-500.0,0.00027886,5]
[357926365,1744575032554,-1803.81618159,0.0002803,2]
[357926367,1744575032563,-500.0,0.00028033,2]
[357926369,1744575032573,-500.0,0.00028033,5]
[357926371,1744575032583,-500.0,0.00028033,5]
[357926373,1744575032592,-500.0,0.00028037,2]
[357926375,1744575032602,-500.0,0.00028052,2]
[357926377,1744575032611,-190.0,0.00028066,2]
[357926379,1744575032621,-500.0,0.00028075,2]
[357926381,1744575032631,-160.0,0.00028171,2]
[357926384,1744575032642,-500.0,0.000282,5]
[357926386,1744575032651,-500.0,0.00028235,2]
[357926388,1744575032661,-500.0,0.0002828,5]
[357926390,1744575032671,-500.0,0.00028288,2]
[357926392,1744575032680,-500.0,0.00028358,3]
[357926394,1744575032690,-500.0,0.00028358,5]
[357926396,1744575032700,-395.42,0.000284,2]
[357926398,1744575032709,-500.0,0.00028569,2]
[357926400,1744575032719,-500.0,0.00028678,2]
[357926402,1744575032729,-500.0,0.00028695,2]
[357926404,1744575032740,-500.0,0.00028727,2]
[357926406,1744575032751,-500.0,0.00028765,2]
[357926408,1744575032761,-157.0,0.00028767,2]
[357926410,1744575032772,-330.3153925,0.00028802,2]
[357926412,1744575032783,-500.0,0.0002882,2]
[357926414,1744575032794,-500.0,0.0002883,2]
[357926416,1744575032804,-500.0,0.00028873,5]
[357926418,1744575032814,-9730.24327919,0.0002888,2]
[357926421,1744575032827,-77841.9462335,0.0002889,2]
[357926423,1744575032838,-587.0,0.00028896,2]
[357926425,1744575032848,-179756.80854869,0.000289,2]
[357926427,1744575032862,-73203.6030851,0.000289,2]
[357926636,1744575038279,-500.0,0.00023381,2]
[357926637,1744575038290,-500.0,0.00023381,2]
[357926638,1744575038302,-165.61133315,0.00023381,2]
[357926639,1744575038313,-402.91610076,0.00023381,2]
[357926640,1744575038326,-633.86781095,0.00023381,2]
[357926641,1744575038336,-500.0,0.00023381,2]
[357926642,1744575038346,-500.0,0.00023381,2]
[357926643,1744575038356,-500.0,0.00023381,2]
[357926644,1744575038366,-500.0,0.00023381,2]
[357926645,1744575038375,-500.0,0.00023381,2]
[357926646,1744575038386,-500.0,0.00023381,2]
[357926647,1744575038397,-500.0,0.00023381,2]
[357926648,1744575038408,-500.0,0.00023381,2]
[357926649,1744575038418,-500.0,0.00023381,2]
[357926650,1744575038428,-500.0,0.00023381,2]
[357926651,1744575038439,-485.36826353,0.000259,6]
[357926652,1744575038450,-485.36826337,0.00026383,6]
[357926653,1744575038460,-485.36826337,0.00026866,7]
[357926654,1744575038470,-117039.58836621,0.000289,2]
[357926655,1744575038481,-507.45472101,0.00028902,2]
[357926656,1744575038490,-1000.0,0.00028905,3]
[357926657,1744575038500,-500.0,0.00028966,2]
[357926658,1744575038511,-183.56220807,0.00028969,2]
[357926659,1744575038521,-174.16044613,0.00028969,2]
[357926660,1744575038531,-500.0,0.00028973,5]
[357926662,1744575038541,-500.0,0.00028973,5]
[357926663,1744575038551,-500.0,0.00028973,5]
[357926665,1744575038562,-500.0,0.00028973,5]
[357926667,1744575038575,-500.0,0.00028973,5]
[357926668,1744575038585,-500.0,0.00028973,5]
[357926669,1744575038595,-500.0,0.00028973,5]
[357926670,1744575038606,-500.0,0.00028973,5]
[357926671,1744575038615,-500.0,0.00028973,5]
[357926672,1744575038625,-500.0,0.00028973,5]
[357926673,1744575038635,-564.92949224,0.00028973,5]
[357926674,1744575038645,-500.0,0.00028973,5]
[357926675,1744575038654,-500.0,0.00028973,5]
[357926676,1744575038664,-500.0,0.00028973,5]
[357926677,1744575038673,-502.22055672,0.00028973,5]
[357926678,1744575038683,-500.0,0.00028973,5]
[357926679,1744575038693,-500.0,0.00028973,5]
[357926680,1744575038703,-500.0,0.00028973,5]
[357926681,1744575038713,-500.0,0.00028973,5]
[357926682,1744575038723,-500.0,0.00028973,5]
[357926683,1744575038733,-500.0,0.00028973,5]
[357926684,1744575038745,-500.0,0.00028973,5]
[357926685,1744575038755,-500.0,0.00028973,5]
[357926686,1744575038765,-500.0,0.00028973,5]
[357926687,1744575038775,-500.0,0.00028973,5]
[357926688,1744575038786,-500.0,0.00028973,5]
[357926689,1744575038796,-500.0,0.00028973,5]
[357926690,1744575038807,-500.0,0.00028973,5]
[357926691,1744575038817,-500.0,0.00028973,5]
[357926692,1744575038830,-500.0,0.00028973,5]
[357926693,1744575038840,-500.0,0.00028973,5]
[357926694,1744575038851,-8476.41324712,0.0002898,2]
[357926695,1744575038865,-1253.83003207,0.0002898,2]
[357926696,1744575038876,-632.83611937,0.0002898,2]
[357926697,1744575038903,-485.36826337,0.00027348,7]
[357926698,1744575038913,-37.08173663,0.0002898,2]
[357926699,1744575038927,-3647.92052878,0.0002898,2]
[357926729,1744575043269,-485.36826337,0.00027831,7]
[357926730,1744575043279,-232.25719689,0.00028314,7]
[357926737,1744575046152,-253.11106648,0.00028314,7]
[357926738,1744575046163,-485.36826337,0.00028797,8]
[357926739,1744575046173,-174.58424686,0.00028969,2]
[357926740,1744575046182,-896.40848358,0.0002898,2]
[357926741,1744575046262,-4698.358752,0.0002898,2]
[357926762,1744576232194,-400.4513943,0.00016,2]
[357926763,1744576232204,-410.29,0.000175,4]
[357926764,1744576232214,-300.0,0.00022207,2]
[357926765,1744576232224,-85.49358255,0.00022207,2]
[357926766,1744576232251,-214.50641745,0.00022207,2]
[357926767,1744576232261,-500.0,0.00022208,2]
[357926768,1744576232271,-500.0,0.00022208,2]
[357926769,1744576232280,-944.41322029,0.00022208,2]
[357926770,1744576232290,-500.0,0.00022208,2]
[357926771,1744576232299,-269.47315837,0.00022208,2]
[357926772,1744576232311,-674.94006192,0.00022208,2]
[357926773,1744576232321,-500.0,0.00022208,2]
[357926774,1744576232330,-500.0,0.00022208,2]
[357926775,1744576232340,-944.41322029,0.00022208,2]
[357926776,1744576232349,-500.0,0.00022208,2]
[357926777,1744576232359,-500.0,0.00022208,2]
[357926778,1744576232369,-944.41322029,0.00022208,2]
[357926779,1744576232381,-500.0,0.00022208,2]
[357926780,1744576232391,-500.0,0.00022208,2]
[357926781,1744576232401,-762.00836609,0.00022208,2]
[357926783,1744576232412,-182.4048542,0.00022208,2]
[357926785,1744576232422,-500.0,0.00022208,2]
[357926787,1744576232432,-500.0,0.00022208,2]
[357926789,1744576232442,-944.41322029,0.00022208,2]
[357926791,1744576232452,-500.0,0.00022208,2]
[357926793,1744576232462,-500.0,0.00022208,2]
[357926795,1744576232471,-500.0,0.00022208,2]
[357926797,1744576232481,-944.41322029,0.00022208,2]
[357926799,1744576232491,-500.0,0.00022208,2]
[357926801,1744576232501,-944.41322029,0.00022208,2]
[357926803,1744576232510,-378.85907068,0.00022208,2]
[357926805,1744576232520,-500.0,0.00022208,2]
[357926807,1744576232530,-944.41322029,0.00022208,2]
[357926809,1744576232541,-436.03322015,0.00022208,2]
[357926811,1744576232551,-944.41322029,0.00022208,2]
[357926813,1744576232561,-500.0,0.00022208,2]
[357926814,1744576232572,-944.41322029,0.00022208,2]
[357926815,1744576232581,-500.0,0.00022208,2]
[357926817,1744576232591,-944.41322029,0.00022208,2]
[357926819,1744576232601,-500.0,0.00022208,2]
[357926821,1744576232611,-944.41322029,0.00022208,2]
[357926823,1744576232623,-500.0,0.00022208,2]
[357926825,1744576232637,-944.41322029,0.00022208,2]
[357926827,1744576232648,-944.41322029,0.00022208,2]
[357926829,1744576232659,-500.0,0.00022208,2]
[357926831,1744576232670,-944.41322029,0.00022208,2]
[357926833,1744576232680,-500.0,0.00022208,2]
[357926835,1744576232691,-500.0,0.00022208,2]
[357926837,1744576232701,-944.41322029,0.00022208,2]
[357926838,1744576232711,-944.41322029,0.00022208,2]
[357926839,1744576232721,-500.0,0.00022208,2]
[357926840,1744576232730,-944.41322029,0.00022208,2]
[357926841,1744576232740,-500.0,0.00022208,2]
[357926842,1744576232750,-944.41322029,0.00022208,2]
[357926843,1744576232759,-500.0,0.00022208,2]
[357926844,1744576232769,-944.41322029,0.00022208,2]
[357926845,1744576232779,-500.0,0.00022208,2]
[357926846,1744576232789,-944.41322029,0.00022208,2]
[357926847,1744576232798,-944.41322029,0.00022208,2]
[357926848,1744576232808,-944.41322029,0.00022208,2]
[357926849,1744576232817,-944.41322029,0.00022208,2]
[357926850,1744576232827,-944.41322029,0.00022208,2]
[357926851,1744576232837,-944.41322029,0.00022208,2]
[357926852,1744576232848,-944.41322029,0.00022208,2]
[357926853,1744576232857,-944.41322029,0.00022208,2]
[357926854,1744576232866,-944.41322029,0.00022208,2]
[357926855,1744576232879,-944.41322029,0.00022208,2]
[357926856,1744576232888,-944.41322029,0.00022208,2]
[357926857,1744576232898,-944.41322029,0.00022208,2]
[357926858,1744576232907,-944.41322029,0.00022208,2]
[357926859,1744576232916,-944.41322029,0.00022208,2]
[357926860,1744576232926,-944.41322029,0.00022208,2]
[357926861,1744576233097,-944.41322029,0.00022208,2]
[357926862,1744576233108,-944.41322029,0.00022208,2]
[357926863,1744576233121,-944.41322029,0.00022208,2]
[357926864,1744576233133,-944.41322029,0.00022208,2]
[357926865,1744576233143,-944.41322029,0.00022208,2]
[357926866,1744576233153,-944.41322029,0.00022208,2]
[357926867,1744576233163,-944.41322029,0.00022208,2]
[357926868,1744576233173,-944.41322029,0.00022208,2]
[357926869,1744576233183,-944.41322029,0.00022208,2]
[357926870,1744576233193,-944.41322029,0.00022208,2]
[357926871,1744576233205,-30.25172101,0.00022208,2]
[357926872,1744576233218,-401.0,0.00022208,2]
[357926873,1744576233229,-513.16149928,0.00022208,2]
[357926874,1744576233241,-944.41322029,0.00022208,2]
[357926875,1744576233251,-944.41322029,0.00022208,2]
[357926876,1744576233261,-944.41322029,0.00022208,2]
[357926877,1744576233271,-941.86075213,0.00022208,2]
[357926878,1744576233280,-941.86075213,0.00022208,2]
[357926879,1744576233290,-941.86075213,0.00022208,2]
[357926880,1744576233300,-941.86075213,0.00022208,2]
[357926881,1744576233310,-941.86075213,0.00022208,2]
[357926882,1744576233319,-941.86075213,0.00022208,2]
[357926883,1744576233328,-941.86075213,0.00022208,2]
[357926884,1744576233338,-941.86075213,0.00022208,2]
[357926885,1744576233347,-941.86075213,0.00022208,2]
[357926886,1744576233357,-941.86075213,0.00022208,2]
[357926887,1744576233367,-941.86075213,0.00022208,2]
[357926888,1744576233379,-941.86075213,0.00022208,2]
[357926889,1744576233389,-941.86075213,0.00022208,2]
[357926890,1744576233399,-941.86075213,0.00022208,2]
[357926891,1744576233409,-941.86075213,0.00022208,2]
[357926892,1744576233419,-941.86075213,0.00022208,2]
[357926893,1744576233428,-941.86075213,0.00022208,2]
[357926894,1744576233438,-941.86075213,0.00022208,2]
[357926895,1744576233447,-941.86075213,0.00022208,2]
[357926896,1744576233457,-941.86075213,0.00022208,2]
[357926897,1744576233467,-941.86075213,0.00022208,2]
[357926898,1744576233477,-941.86075213,0.00022208,2]
[357926899,1744576233486,-941.86075213,0.00022208,2]
[357926900,1744576233496,-941.86075213,0.00022208,2]
[357926901,1744576233505,-941.86075213,0.00022208,2]
[357926902,1744576233515,-941.86075213,0.00022208,2]
[357926903,1744576233524,-941.86075213,0.00022208,2]
[357926904,1744576233534,-941.86075213,0.00022208,2]
[357926905,1744576233544,-941.86075213,0.00022208,2]
[357926906,1744576233553,-941.86075213,0.00022208,2]
[357926907,1744576233563,-941.86075214,0.00022208,2]
[357926908,1744576233572,-941.86075214,0.00022208,2]
[357926909,1744576233581,-941.86075214,0.00022208,2]
[357926910,1744576233591,-941.86075214,0.00022208,2]
[357926911,1744576233601,-941.86075214,0.00022208,2]
[357926912,1744576233610,-941.86075214,0.00022208,2]
[357926913,1744576233620,-941.86075214,0.00022208,2]
[357926914,1744576233630,-200.0,0.00022208,10]
[357926915,1744576233640,-200.0,0.00022208,10]
[357926916,1744576233651,-166.778496,0.00022208,10]
[357926917,1744576233660,-24900.0,0.00022209,2]
[357926918,1744576233670,-152.0,0.00022357,2]
[357926919,1744576233679,-469.5831954,0.00022505,2]
[357926920,1744576233688,-500.0,0.00022505,2]
[357926921,1744576233698,-500.0,0.00022505,2]
[357926922,1744576233708,-500.0,0.00022505,2]
[357926923,1744576233717,-500.0,0.00022505,2]
[357926924,1744576233726,-500.0,0.00022505,2]
[357926925,1744576233736,-500.0,0.00022505,2]
[357926926,1744576233746,-542.98283116,0.00022505,2]
[357926927,1744576233755,-500.0,0.00022555,2]
[357926928,1744576233764,-511.47588014,0.00022555,2]
[357926929,1744576233774,-251.98532181,0.00022555,2]
[357926930,1744576233783,-316.577164,0.00022564,2]
[357926931,1744576233793,-278.78931694,0.00023125,2]
[357926932,1744576233802,-838.34317751,0.00023181,2]
[357926933,1744576233811,-12544.73749783,0.00023181,2]
[357926934,1744576233821,-160.0,0.00023185,2]
[357926935,1744576233830,-500.0,0.00023205,2]
[357926936,1744576233840,-159.28221192,0.00023205,2]
[357926937,1744576233849,-500.0,0.00023205,2]
[357926938,1744576233858,-268.22107742,0.00023205,2]
[357926939,1744576233868,-500.0,0.00023205,2]
[357926940,1744576233879,-2353.55953729,0.00023207,2]
[357926941,1744576233889,-151.0,0.00023212,2]
[357926942,1744576233899,-419.89681905,0.00023262,2]
[357926943,1744576233909,-160.0,0.00023268,2]
[357926944,1744576233919,-160.0,0.00023269,2]
[357926945,1744576233928,-500.0,0.00023305,2]
[357926946,1744576233938,-500.0,0.00023305,2]
[357926947,1744576233948,-500.0,0.00023305,2]
[357926948,1744576233957,-500.0,0.00023305,2]
[357926949,1744576233967,-500.0,0.00023309,2]
[357926950,1744576233977,-500.0,0.00023312,2]
[357926951,1744576233986,-160.0,0.00023379,2]
[357926952,1744576233995,-500.0,0.00023379,2]
[357926953,1744576234005,-903.67775562,0.00023484,2]
[357926954,1744576234015,-1000.0,0.00023853,2]
[357926955,1744576234024,-452.7421969,0.000239,5]
[357926956,1744576234033,-420.0,0.00024126,2]
[357926957,1744576234043,-420.0,0.00024239,2]
[357926958,1744576234053,-278.7893169,0.00024384,2]
[357926959,1744576234063,-1500.0,0.00024401,2]
[357926960,1744576234073,-452.74219669,0.00024452,5]
[357926961,1744576234083,-160.0,0.00024749,2]
[357926962,1744576234092,-6879.93752636,0.0002489,2]
[357926963,1744576234102,-28887.3377883,0.000249,2]
[357926964,1744576234112,-1019.18095539,0.00024949,2]
[357926965,1744576234128,-452.74219669,0.00025003,5]
[357926966,1744576234138,-452.74219669,0.00025555,6]
[357926967,1744576234148,-278.7893169,0.00025643,2]
[357926968,1744576234158,-452.74219669,0.00026107,6]
[357926969,1744576234168,-160.0,0.00026118,2]
[357926970,1744576234178,-587.0,0.00026212,2]
[357926971,1744576234188,-587.0,0.00026458,2]
[357926972,1744576234199,-452.74219669,0.00026659,6]
[357926973,1744576234209,-804.1816829,0.000268,2]
[357926974,1744576234219,-278.7893169,0.00026902,2]
[357926975,1744576234228,-452.74219669,0.0002721,7]
[357926976,1744576234238,-201.580136,0.00027397,2]
[357926977,1744576234248,-500.0,0.00027397,2]
[357926978,1744576234258,-500.0,0.00027397,2]
[357926979,1744576234267,-430.94337361,0.00027397,2]
[357926980,1744576234277,-500.0,0.00027397,2]
[357926981,1744576234286,-500.0,0.00027397,2]
[357926982,1744576234296,-500.0,0.00027397,5]
[357926983,1744576234306,-160.0,0.00027488,2]
[357926984,1744576234316,-452.74219669,0.00027762,7]
[357926985,1744576234326,-14443.6688942,0.0002798,2]
[357926986,1744576234335,-5088.60088582,0.00027982,2]
[357926987,1744576234345,-1000.0,0.00027984,5]
[357926988,1744576234355,-1000.0,0.00027984,2]
[357926989,1744576234366,-1000.0,0.00027984,5]
[357926990,1744576234377,-1000.0,0.00027984,5]
[357926991,1744576234386,-1000.0,0.00027984,5]
[357926992,1744576234396,-1000.0,0.00027984,5]
[357926993,1744576234405,-14376.41990368,0.0002799,2]
[357926994,1744576234418,-1392.89283319,0.0002799,2]
[357927043,1744576238529,-268.06056096,0.00020108,2]
[357927045,1744576238539,-838.34317751,0.00023174,2]
[357927047,1744576238548,-268.06056096,0.00025108,2]
[357927049,1744576238557,-745.61769879,0.0002799,2]
[357927051,1744576238569,-6640.4530264,0.0002799,2]
[357927054,1744576238580,-1500.58988188,0.0002799,2]
[357927059,1744576238625,-4231.36444436,0.0002799,2]
[357927061,1744576238635,-10431.69977392,0.00028,2]
[357927063,1744576238647,-16403.26669169,0.00028,2]
[357927065,1744576238658,-3406.18157054,0.00028,2]
[357927068,1744576238670,-8372.32463846,0.00028,2]
[357927070,1744576238683,-392.0314476,0.00028,2]
[357927180,1744576240599,-896.90007,0.00028,2]
[357927181,1744576240611,-324.97025148,0.00028,2]
[357927182,1744576240623,-2416.58911568,0.00028,2]
[357927183,1744576240635,-20906.28794628,0.00028,2]
[357927184,1744576240648,-1041.44652036,0.00028,2]
[357927185,1744576240660,-3910.92031945,0.00028,2]
[357927186,1744576240672,-850.41025125,0.00028,2]
[357927205,1744576243463,-1950.84748107,0.00028,2]
[357927206,1744576243479,-6484.84032396,0.00028,2]
[357927207,1744576243494,-683.35011933,0.00028,2]
[357927208,1744576243540,-579.14675418,0.00028,2]
[357927240,1744576246291,-797.37923331,0.00028,2]
[357927242,1744576246357,-79.89435121,0.00028,2]
[357927243,1744576246371,-151.0,0.00028,7]
[357927244,1744576246382,-151.0,0.00028,7]
[357927245,1744576246395,-1000.0,0.00028034,5]
[357927246,1744576246406,-600.0,0.00028082,2]
[357927247,1744576246419,-278.7893169,0.00028161,2]
[357927248,1744576246432,-600.0,0.00028246,2]
[357927249,1744576246444,-6630.11938497,0.00028251,2]
[357927250,1744576246459,-271.2209191,0.00028251,2]
[357927251,1744576246474,-3192.53909341,0.00028251,2]
[357927252,1744576246489,-1227.23823047,0.00028251,2]
[357927253,1744576246504,-2386.50860807,0.00028251,2]
[357927254,1744576246519,-29623.38044648,0.00028251,2]
[357927255,1744576246531,-13797.72015198,0.00028261,2]
[357927348,1744577432567,-300.0,0.00020968,2]
[357927350,1744577432579,-500.0,0.00020968,2]
[357927352,1744577432591,-300.0,0.00020969,2]
[357927355,1744577432603,-43403.30832686,0.00020969,2]
[357927357,1744577432614,-500.0,0.00020969,2]
[357927359,1744577432624,-500.0,0.00020969,2]
[357927361,1744577432635,-500.0,0.00020969,2]
[357927363,1744577432647,-500.0,0.00020969,2]
[357927365,1744577432658,-376.46350091,0.00020969,2]
[357927366,1744577432668,-24900.0,0.0002097,2]
[357927367,1744577432679,-1411.3419027,0.00021067,2]
[357927368,1744577432689,-6864.175745,0.00021205,2]
[357927369,1744577432699,-152.0,0.0002129,2]
[357927370,1744577432709,-500.0,0.00021293,2]
[357927371,1744577432719,-500.0,0.00021293,2]
[357927372,1744577432730,-500.0,0.00021293,2]
[357927373,1744577432741,-500.0,0.00021293,2]
[357927374,1744577432750,-500.0,0.00021293,2]
[357927375,1744577432761,-500.0,0.00021293,2]
[357927376,1744577432773,-500.0,0.00021293,2]
[357927377,1744577432783,-158.288582,0.00021422,2]
[357927378,1744577432794,-333.75303438,0.000219,3]
[357927379,1744577432805,-500.0,0.00021973,2]
[357927380,1744577432816,-500.0,0.00021973,2]
[357927381,1744577432826,-500.0,0.00022029,2]
[357927382,1744577432837,-151.0,0.00022058,2]
[357927383,1744577432848,-12523.13849516,0.00022066,2]
[357927384,1744577432858,-500.0,0.00022073,2]
[357927385,1744577432868,-151.0,0.00022095,2]
[357927386,1744577432880,-500.0,0.00022115,2]
[357927387,1744577432891,-503.80431816,0.00022125,2]
[357927388,1744577432902,-500.0,0.00022125,2]
[357927389,1744577432912,-500.0,0.00022125,2]
[357927390,1744577432923,-500.0,0.00022125,2]
[357927391,1744577432934,-151.0,0.0002215,2]
[357927392,1744577432945,-198.30298837,0.00022205,2]
[357927393,1744577432955,-333.75303431,0.00022521,4]
[357927394,1744577432967,-420.0,0.0002281,2]
[357927395,1744577432978,-420.0,0.00022919,2]
[357927396,1744577432989,-160.0,0.00023,2]
[357927397,1744577432999,-333.75303431,0.00023141,4]
[357927398,1744577433009,-160.0,0.00023206,2]
[357927399,1744577433019,-333.75303431,0.00023762,4]
[357927400,1744577433029,-333.75303431,0.00024383,5]
[357927401,1744577433039,-160.0,0.00024576,2]
[357927402,1744577433049,-587.0,0.00024813,2]
[357927403,1744577433058,-13758.49905244,0.000249,2]
[357927439,1744577438564,-500.0,0.00020968,2]
[357927441,1744577438577,-260.18070285,0.00020968,2]
[357927443,1744577438588,-500.0,0.00020968,2]
[357927445,1744577438599,-449.97261798,0.00020968,2]
[357927448,1744577438612,-50.02738202,0.00020968,2]
[357927449,1744577438623,-500.0,0.00020968,2]
[357927450,1744577438633,-264.0515001,0.00020968,2]
[357927453,1744577438645,-500.0,0.00020968,2]
[357927455,1744577438656,-500.0,0.00020968,2]
[357927457,1744577438666,-500.0,0.00020968,2]
[357927459,1744577438677,-500.0,0.00020968,2]
[357927461,1744577438687,-500.0,0.00020968,2]
[357927463,1744577438697,-500.0,0.00020968,2]
[357927465,1744577438707,-500.0,0.00020968,2]
[357927466,1744577438718,-500.0,0.00020968,2]
[357927468,1744577438729,-500.0,0.00020968,2]
[357927470,1744577438739,-263.98734767,0.00020968,2]
[357927471,1744577438753,-236.01265233,0.00020968,2]
[357927472,1744577438763,-500.0,0.00020968,2]
[357927473,1744577438774,-500.0,0.00020968,2]
[357927474,1744577438785,-504.11677429,0.00020968,2]
[357927475,1744577438795,-341.73100397,0.00020968,2]
[357927476,1744577438806,-500.0,0.00020968,2]
[357927477,1744577438817,-500.0,0.00020968,2]
[357927478,1744577438827,-500.0,0.00020968,2]
[357927479,1744577438838,-500.0,0.00020968,2]
[357927480,1744577438849,-500.0,0.00020968,2]
[357927481,1744577438859,-500.0,0.00020968,2]
[357927482,1744577438870,-500.0,0.00020968,2]
[357927483,1744577438881,-500.0,0.00020968,2]
[357927484,1744577438892,-500.0,0.00020968,2]
[357927485,1744577438902,-500.0,0.00020968,2]
[357927486,1744577438913,-500.0,0.00020968,2]
[357927487,1744577438923,-500.0,0.00020968,2]
[357927488,1744577438934,-500.0,0.00020968,2]
[357927489,1744577438945,-500.0,0.00020968,2]
[357927490,1744577438956,-500.0,0.00020968,2]
[357927491,1744577438966,-500.0,0.00020968,2]
[357927492,1744577438977,-500.0,0.00020968,2]
[357927493,1744577438987,-500.0,0.00020968,2]
[357927494,1744577438998,-500.0,0.00020968,2]
[357927495,1744577439211,-500.0,0.00020968,2]
[357927496,1744577439232,-500.0,0.00020968,2]
[357927497,1744577439245,-500.0,0.00020968,2]
[357927498,1744577439256,-500.0,0.00020968,2]
[357927499,1744577439267,-500.0,0.00020968,2]
[357927500,1744577439277,-500.0,0.00020968,2]
[357927501,1744577439287,-500.0,0.00020968,2]
[357927502,1744577439298,-500.0,0.00020968,2]
[357927503,1744577439309,-500.0,0.00020968,2]
[357927504,1744577439318,-500.0,0.00020968,2]
[357927505,1744577439328,-500.0,0.00020968,2]
[357927506,1744577439338,-332.40242296,0.00020968,2]
[357927507,1744577439348,-2194.13160536,0.000249,2]
[357927508,1744577439358,-333.75303431,0.00025003,5]
[357927509,1744577439368,-587.0,0.0002505,2]
[357927510,1744577439377,-333.75303431,0.00025624,6]
[357927511,1744577439387,-160.0,0.00025946,2]
[357927512,1744577439403,-525.75537904,0.00026151,2]
[357927513,1744577439413,-333.75303431,0.00026245,6]
[357927514,1744577439424,-500.0,0.00026773,2]
[357927515,1744577439435,-1000.0,0.00026773,2]
[357927516,1744577439445,-390.41674973,0.00026773,2]
[357927517,1744577439456,-1000.0,0.00026773,2]
[357927518,1744577439467,-1000.0,0.00026773,2]
[357927519,1744577439478,-1000.0,0.00026773,2]
[357927520,1744577439490,-333.75303431,0.00026866,7]
[357927521,1744577439502,-823.0,0.00026992,2]
[357927522,1744577439513,-458.38403953,0.00027198,120]
[357927523,1744577439523,-160.0,0.00027315,2]
[357927524,1744577439535,-823.0,0.00027379,2]
[357927525,1744577439544,-500.0,0.00027397,2]
[357927526,1744577439555,-500.0,0.00027397,2]
[357927527,1744577439566,-500.0,0.00027397,2]
[357927528,1744577439578,-500.0,0.00027397,2]
[357927529,1744577439588,-500.0,0.00027397,5]
[357927530,1744577439599,-333.75303431,0.00027486,7]
[357927531,1744577439609,-500.0,0.00027508,5]
[357927532,1744577439619,-1000.0,0.00027552,5]
[357927533,1744577439629,-1000.0,0.00027595,5]
[357927534,1744577439640,-646.101749,0.00027604,5]
[357927535,1744577439654,-1000.0,0.00027604,5]
[357927536,1744577439665,-499.3,0.00028015,2]
[357927537,1744577439675,-600.0,0.00028015,2]
[357927538,1744577439686,-333.75303431,0.00028107,7]
[357927539,1744577439697,-1747.6787118,0.0002811,4]
[357927540,1744577439707,-600.0,0.00028145,2]
[357927541,1744577439718,-250.0,0.00028161,2]
[357927542,1744577439729,-1000.0,0.00028161,2]
[357927543,1744577439739,-500.0,0.00028237,2]
[357927544,1744577439749,-7976.31532891,0.00028261,2]
[357927545,1744577439759,-7411.59326264,0.00028271,3]
[357927654,1744577442524,-5125.13200189,0.00028271,3]
[357927655,1744577442534,-838.34317751,0.00028271,3]
[357927656,1744577442545,-382.58453037,0.00028271,3]
[357927657,1744577442555,-151.0,0.00028271,7]
[357927658,1744577442565,-355.88,0.000284,2]
[357927659,1744577442577,-600.0,0.00028582,2]
[357927660,1744577442586,-151.0,0.000286,14]
[357927661,1744577442595,-600.0,0.00028645,2]
[357927662,1744577442605,-160.0,0.00028685,2]
[357927663,1744577442615,-20128.3757127,0.0002871,2]
[357927664,1744577442625,-600.0,0.00028725,2]
[357927665,1744577442635,-333.75303431,0.00028728,8]
[357927667,1744577442644,-600.0,0.00028751,2]
[357927669,1744577442654,-7976.31532891,0.00028763,2]